fUST/lending_fUST_20251020
["ID","MTS","AMOUNT","RATE_DAILY","PERIOD"]
[391844945,1760909438590,-500.0,0.00024199,2]
[391844946,1760909438599,-271.42157131,0.00024199,2]
[391844947,1760909438610,-191.17001576,0.00024199,2]
[391844948,1760909438620,-500.0,0.00024199,2]
[391844949,1760909438629,-500.0,0.000242,2]
[391844950,1760909438639,-643.60035416,0.000242,2]
[391844951,1760909438650,-52181.97913693,0.000242,2]
[391844952,1760909438660,-272.07,0.00024263,3]
[391844953,1760909438669,-816.26,0.00024263,3]
[391844954,1760909438679,-1033.27,0.00024263,10]
[391844955,1760909438688,-861.06,0.00024263,10]
[391844956,1760909438698,-717.55,0.00024263,10]
[391844957,1760909438708,-6931.4598903,0.00024263,2]
[391844958,1760909438717,-207.94285138,0.00024271,2]
[391844959,1760909438727,-389.32307222,0.00024271,2]
[391844960,1760909438738,-500.0,0.00024272,2]
[391844961,1760909438748,-500.0,0.00024272,2]
[391844962,1760909438758,-500.0,0.00024272,2]
[391844963,1760909438768,-500.0,0.00024272,2]
[391844964,1760909438778,-500.0,0.00024272,2]
[391844965,1760909438788,-157.71831543,0.00024272,2]
[391844966,1760909438798,-155.371,0.00024272,2]
[391844967,1760909438808,-500.0,0.00024272,2]
[391844968,1760909438817,-500.0,0.00024272,2]
[391844969,1760909438827,-500.0,0.00024272,2]
[391844970,1760909438839,-393.37532674,0.00024272,2]
[391844971,1760909438849,-500.0,0.00024272,2]
[391844972,1760909438859,-500.0,0.00024272,2]
[391844973,1760909438869,-500.0,0.00024272,2]
[391844974,1760909438880,-500.0,0.00024272,2]
[391844975,1760909438891,-500.0,0.00024272,2]
[391844976,1760909438901,-259.36248541,0.00024272,2]
[391844977,1760909438911,-500.0,0.00024272,2]
[391844978,1760909438921,-501.35614092,0.00024273,2]
[391844979,1760909438931,-501.38556347,0.00024273,2]
[391844980,1760909438943,-501.05338834,0.00024273,2]
[391844981,1760909438954,-501.30339581,0.00024273,2]
[391844982,1760909438964,-500.95109076,0.00024273,2]
[391844983,1760909438975,-500.0,0.00024273,2]
[391844984,1760909438986,-158.4196259,0.00024273,2]
[391844985,1760909438995,-500.0,0.00024273,2]
[391844986,1760909439005,-500.0,0.00024273,5]
[391844987,1760909439016,-501.60837499,0.00024273,2]
[391844988,1760909439026,-501.67676312,0.00024273,2]
[391844989,1760909439036,-502.0507583,0.00024273,2]
[391844990,1760909439047,-500.0,0.00024273,2]
[391844991,1760909439057,-500.0,0.00024273,2]
[391844992,1760909439067,-500.0,0.00024273,2]
[391844993,1760909439148,-500.0,0.00024273,2]
[391844994,1760909439159,-500.0,0.00024273,2]
[391844995,1760909439169,-370000.0,0.00024273,2]
[391844996,1760909439178,-402.86590842,0.000243,7]
[391844997,1760909439188,-51737.75,0.000243,7]
[391844998,1760909439197,-643.60035416,0.00024361,2]
[391844999,1760909439207,-151.0,0.000245,10]
[391845000,1760909439216,-151.0,0.000245,6]
[391845001,1760909439226,-643.60035416,0.00024521,2]
[391845002,1760909439235,-500.0,0.00024547,5]
[391845003,1760909439245,-151.0,0.000246,5]
[391845004,1760909439254,-643.60035416,0.00024682,2]
[391845005,1760909439264,-151.0,0.000247,8]
[391845006,1760909439273,-151.0,0.000247,6]
[391845007,1760909439283,-172.5,0.00024763,2]
[391845008,1760909439292,-151.0,0.000248,8]
[391845009,1760909439302,-16169.9787526,0.000248,2]
[391845010,1760909439311,-1000.0,0.00024821,2]
[391845011,1760909439321,-1000.0,0.00024821,2]
[391845012,1760909439331,-500.0,0.00024821,5]
[391845013,1760909439340,-507.57033413,0.00024821,2]
[391845014,1760909439349,-500.0,0.00024821,2]
[391845015,1760909439359,-500.0,0.00024821,2]
[391845016,1760909439368,-520.39352433,0.00024821,2]
[391845017,1760909439377,-1000.0,0.00024821,2]
[391845018,1760909439386,-643.60035416,0.00024842,2]
[391845019,1760909439395,-638.84755237,0.00024873,2]
[391845020,1760909439404,-1191.06,0.00024889,2]
[391845021,1760909439414,-1191.06,0.00024889,2]
[391845022,1760909439423,-1191.06,0.00024889,2]
[391845023,1760909439434,-1191.06,0.00024889,2]
[391845024,1760909439444,-1191.06,0.00024889,2]
[391845025,1760909439455,-17966.6430584,0.0002489,2]
[391845026,1760909439464,-151.0,0.000249,8]
[391845027,1760909439475,-501.58977297,0.00024973,2]
[391845028,1760909439485,-236.03131122,0.00024973,2]
[391845029,1760909439495,-502.01162706,0.00024973,2]
[391845030,1760909439505,-160.02122795,0.00024973,2]
[391845031,1760909439514,-158.02097097,0.00024973,2]
[391845032,1760909439523,-158.42101567,0.00024973,2]
[391845033,1760909439538,-160.02123643,0.00024973,2]
[391845034,1760909439548,-510.16068276,0.00024973,2]
[391845035,1760909439557,-501.712446,0.00024973,2]
[391845036,1760909439567,-502.45432216,0.00024973,2]
[391845037,1760909439587,-597.14114543,0.00024973,2]
[391845038,1760909439605,-502.14291505,0.00024973,2]
[391845039,1760909439624,-158.43728146,0.00024973,2]
[391845040,1760909439642,-159.71149922,0.00024973,2]
[391845041,1760909439663,-158.4117426,0.00024973,2]
[391845042,1760909439680,-160.02123643,0.00024973,2]
[391845043,1760909439717,-163.02162884,0.00024973,2]
[391845044,1760909439735,-160.80816682,0.00024973,2]
[391845045,1760909439754,-158.42101845,0.00024973,2]
[391845046,1760909439777,-160.02123643,0.00024973,2]
[391845047,1760909439801,-1191.06,0.00024978,2]
[391845048,1760909439819,-1796.66430584,0.0002498,2]
[391845049,1760909439833,-1191.06,0.00024989,2]
[391845050,1760909439853,-1191.06,0.00024989,2]
[391845051,1760909439872,-1191.06,0.00024989,2]
[391845052,1760909439887,-1191.06,0.00024989,2]
[391845053,1760909439904,-1191.06,0.00024989,2]
[391845054,1760909439926,-100000.0,0.0002499,2]
[391845055,1760909439946,-402.86590842,0.00025,7]
[391845056,1760909439961,-4500.97204589,0.00025,2]
[391845057,1760909439977,-362.79246453,0.00025,2]
[391845059,1760909439992,-500.0,0.00025095,5]
[391845060,1760909440008,-199.0,0.00025205,7]
[391845061,1760909440022,-168.03842845,0.0002536,2]
[391845062,1760909440037,-185.02695723,0.0002536,2]
[391845063,1760909440052,-195.0,0.00025363,2]
[391845064,1760909440067,-500.0,0.00025368,5]
[391845065,1760909440081,-1500.0,0.00025368,2]
[391845066,1760909440096,-1515.25984071,0.00025368,2]
[391845067,1760909440110,-1191.06,0.00025474,2]
[391845068,1760909440124,-199.0,0.00025479,8]
[391845069,1760909440139,-402.86590842,0.00025633,3]
[391845070,1760909440154,-4353.16,0.00025633,3]
[391845071,1760909440168,-1088.3,0.00025633,3]
[391845072,1760909440182,-544.14,0.00025633,3]
[391845073,1760909440197,-151.0,0.00025633,7]
[391845074,1760909440211,-151.546172,0.00025633,7]
[391845075,1760909440226,-151.0,0.00025633,7]
[391845076,1760909440240,-151.0,0.00025633,7]
[391845077,1760909440254,-151.0,0.00025633,7]
[391845078,1760909440268,-151.0,0.00025633,7]
[391845079,1760909440284,-151.0,0.00025633,7]
[391845082,1760909440296,-151.0,0.00025633,7]
[391845084,1760909440305,-528.16,0.00025642,5]
[391845097,1760909440420,-180.51291143,0.00025672,2]
[391845099,1760909440430,-199.0,0.00025753,9]
[391845101,1760909440439,-1191.06,0.00025769,2]
[391845103,1760909440448,-1191.06,0.00025769,2]
[391845105,1760909440458,-1191.06,0.00025769,2]
[391845107,1760909440467,-1191.06,0.00025769,2]
[391845109,1760909440476,-1191.06,0.00025769,2]
[391845111,1760909440485,-1191.06,0.00025769,2]
[391845113,1760909440494,-1191.06,0.00025769,2]
[391845115,1760909440502,-1191.06,0.00025769,2]
[391845117,1760909440511,-1191.06,0.00025769,2]
[391845119,1760909440520,-1191.06,0.00025769,2]
[391845121,1760909440532,-1191.06,0.00025769,2]
[391845123,1760909440541,-1191.22,0.00025769,2]
[391845125,1760909440550,-164.810792,0.00025769,7]
[391845126,1760909440559,-151.0,0.00025769,7]
[391845129,1760909440570,-2015.25160929,0.00025916,2]
[391845131,1760909440579,-449.04,0.0002594,2]
[391845133,1760909440588,-217.5,0.00025963,2]
[391845135,1760909440597,-229.99018217,0.00025992,2]
[391845137,1760909440608,-42790.346505,0.00026,30]
[391845139,1760909440618,-151.0,0.00026047,10]
[391845141,1760909440627,-151.0,0.00026047,10]
[391845143,1760909440636,-151.0,0.00026047,10]
[391845145,1760909440650,-151.0,0.00026047,10]
[391845147,1760909440660,-151.0,0.00026047,10]
[391845149,1760909440670,-198.32727524,0.00026047,10]
[391845151,1760909440683,-151.0,0.00026102,10]
[391845154,1760909440693,-151.0,0.00026102,10]
[391845155,1760909440703,-152.40901124,0.00026102,10]
[391845158,1760909440712,-151.45659162,0.00026102,10]
[391845159,1760909440722,-151.0,0.00026157,10]
[391845162,1760909440736,-260.0,0.0002621,2]
[391845164,1760909440745,-151.0,0.00026211,10]
[391845166,1760909440754,-420.0,0.00026237,2]
[391845167,1760909440764,-151.0,0.00026266,10]
[391845170,1760909440773,-245.0,0.00026321,10]
[391845171,1760909440782,-1335.0,0.00026357,2]
[391845174,1760909440792,-9419.6934264,0.0002651,2]
[391845176,1760909440802,-250.0,0.0002651,2]
[391845178,1760909440810,-250.0,0.0002651,2]
[391845179,1760909440819,-250.0,0.0002651,2]
[391845181,1760909440829,-250.0,0.0002651,2]
[391845183,1760909440838,-533.88981491,0.0002651,2]
[391845185,1760909440847,-194.72792766,0.0002651,2]
[391845187,1760909440856,-250.0,0.0002651,2]
[391845189,1760909440865,-240.0,0.00026563,2]
[391845191,1760909440875,-51737.75,0.000266,7]
[391845193,1760909440884,-402.86590842,0.000266,7]
[391845195,1760909440893,-1842.94903,0.000266,7]
[391845197,1760909440903,-1842.94903,0.000266,7]
[391845199,1760909440913,-1842.94903,0.000266,7]
[391845201,1760909440922,-1842.94903,0.000266,7]
[391845204,1760909440931,-151.0,0.000266,7]
[391845205,1760909440941,-151.0,0.000266,7]
[391845207,1760909440950,-151.0,0.000266,7]
[391845209,1760909440959,-798.902424,0.000266,7]
[391845211,1760909440969,-207.834812,0.000266,7]
[391845214,1760909440979,-798.902424,0.000266,7]
[391845216,1760909440988,-207.834812,0.000266,7]
[391845218,1760909440998,-798.902424,0.000266,7]
[391845220,1760909441007,-207.834812,0.000266,7]
[391845222,1760909441016,-151.0,0.000266,7]
[391845224,1760909441024,-151.0,0.000266,7]
[391845226,1760909441034,-798.902424,0.000266,7]
[391845227,1760909441043,-207.834812,0.000266,7]
[391845229,1760909441052,-151.0,0.000266,7]
[391845230,1760909441061,-151.0,0.000266,7]
[391845231,1760909441071,-151.0,0.000266,7]
[391845232,1760909441079,-151.0,0.000266,7]
[391845233,1760909441088,-151.0,0.000266,7]
[391845234,1760909441097,-151.0,0.000266,7]
[391845235,1760909441106,-151.0,0.000266,7]
[391845236,1760909441116,-151.0,0.000266,7]
[391845237,1760909441126,-169.55942,0.000266,7]
[391845238,1760909441135,-151.0,0.000266,7]
[391845239,1760909441145,-151.0,0.000266,7]
[391845240,1760909441154,-151.280324,0.000266,2]
[391845241,1760909441164,-151.0,0.000266,7]
[391845242,1760909441173,-17364.28745868,0.00026684,2]
[391845243,1760909441183,-172.55,0.00027,3]
[391845244,1760909441192,-201.93286099,0.00027058,2]
[391845245,1760909441203,-553.64373807,0.00027058,2]
[391845246,1760909441212,-262.5,0.00027163,2]
[391845247,1760909441222,-898.08,0.00027175,2]
[391845248,1760909441231,-413.9823279,0.00027195,2]
[391845249,1760909441241,-158.67453999,0.00027225,2]
[391845250,1760909441249,-518.183096,0.00027397,30]
[391845251,1760909441259,-518.183096,0.00027397,30]
[391845252,1760909441269,-518.183096,0.00027397,30]
[391845253,1760909441279,-518.183096,0.00027397,30]
[391845254,1760909441288,-150.0,0.00027397,5]
[391845255,1760909441297,-2246.98,0.000274,2]
[391845256,1760909441307,-5883.99,0.000274,2]
[391845257,1760909441317,-5000.0,0.00027569,2]
[391845258,1760909441327,-209.40437684,0.00027606,2]
[391845259,1760909441337,-574.12855637,0.00027606,2]
[391845260,1760909441349,-150.0,0.00027753,7]
[391845261,1760909441359,-285.0,0.00027763,2]
[391845262,1760909441369,-402.86590842,0.000278,3]
[391845263,1760909441378,-332.71547448,0.00027837,2]
[391845264,1760909441387,-250.0,0.00027945,5]
[391845265,1760909441397,-5184.93570983,0.00028,2]
[391845266,1760909441407,-154.222616,0.00028,2]
[391845267,1760909441416,-169.475,0.00028031,18]
[391845268,1760909441425,-302.16670205,0.00028066,2]
[391845269,1760909441435,-217.15233878,0.00028154,2]
[391845270,1760909441446,-595.37131296,0.00028154,2]
[391845271,1760909441457,-307.5,0.00028363,2]
[391845272,1760909441469,-735.96858293,0.00028398,2]
[391845273,1760909441479,-1347.13,0.0002841,2]
[391845274,1760909441489,-587.0,0.00028447,2]
[391845275,1760909441498,-350.0,0.00028493,5]
[391845276,1760909441508,-225.18697532,0.00028702,2]
[391845277,1760909441517,-617.40005154,0.00028702,2]
[391845278,1760909441530,-330.0,0.00028963,2]
[391845279,1760909441540,-200.63264686,0.00029041,5]
[391845280,1760909441549,-154.222616,0.00029135,2]
[391845281,1760909441559,-52181.97913693,0.0002915,2]
[391845282,1760909441568,-151.0,0.00029158,30]
[391845283,1760909441578,-151.0,0.00029158,30]
[391845284,1760909441587,-151.0,0.00029158,30]
[391845285,1760909441597,-233.51889341,0.0002925,2]
[391845286,1760909441607,-640.24385345,0.0002925,2]
[391845287,1760909441617,-165.67907628,0.0002944,7]
[391845288,1760909441627,-166.0,0.0002944,7]
[391845289,1760909441637,-175.0,0.0002944,7]
[391845290,1760909441646,-152.0,0.0002944,7]
[391845291,1760909441656,-175.26786332,0.0002944,7]
[391845292,1760909441666,-152.0,0.0002944,7]
[391845293,1760909441676,-152.0,0.0002944,7]
[391845294,1760909441686,-163.0,0.0002944,7]
[391845295,1760909441695,-152.0,0.0002944,7]
[391845296,1760909441705,-163.49587639,0.0002944,7]
[391845297,1760909441715,-152.0,0.0002944,7]
[391845298,1760909441724,-205.80011743,0.0002944,7]
[391845299,1760909441734,-152.0,0.0002944,7]
[391845300,1760909441749,-330.0,0.0002944,7]
[391845301,1760909441761,-152.0,0.0002944,7]
[391845302,1760909441771,-330.0,0.0002944,7]
[391845303,1760909441781,-152.0,0.0002944,7]
[391845304,1760909441791,-330.0,0.0002944,7]
[391845305,1760909441870,-152.0,0.0002944,7]
[391845306,1760909441880,-330.0,0.0002944,7]
[391845307,1760909441889,-152.0,0.0002944,7]
[391845308,1760909441898,-330.0,0.0002944,7]
[391845309,1760909441908,-152.0,0.0002944,7]
[391845310,1760909441918,-330.0,0.0002944,7]
[391845311,1760909441927,-152.0,0.0002944,7]
[391845312,1760909441936,-330.0,0.0002944,7]
[391845313,1760909441945,-152.0,0.0002944,7]
[391845314,1760909441954,-330.0,0.0002944,7]
[391845315,1760909441963,-152.0,0.0002944,7]
[391845316,1760909441973,-330.0,0.0002944,7]
[391845317,1760909441982,-272.60998769,0.0002944,7]
[391845318,1760909441991,-330.0,0.0002944,7]
[391845319,1760909442002,-330.0,0.0002944,7]
[391845320,1760909442011,-330.0,0.0002944,7]
[391845321,1760909442020,-330.0,0.0002944,7]
[391845322,1760909442030,-172.0,0.0002944,7]
[391845323,1760909442041,-330.0,0.0002944,7]
[391845324,1760909442052,-330.0,0.0002944,7]
[391845325,1760909442061,-330.0,0.0002944,7]
[391845326,1760909442072,-330.0,0.0002944,7]
[391845327,1760909442081,-330.0,0.0002944,7]
[391845328,1760909442090,-330.0,0.0002944,7]
[391845329,1760909442100,-330.0,0.0002944,7]
[391845330,1760909442109,-330.0,0.0002944,7]
[391845331,1760909442118,-330.0,0.0002944,7]
[391845332,1760909442128,-330.0,0.0002944,7]
[391845333,1760909442139,-330.0,0.0002944,7]
[391845334,1760909442153,-330.0,0.0002944,7]
[391845335,1760909442163,-330.0,0.0002944,7]
[391845336,1760909442172,-330.0,0.0002944,7]
[391845337,1760909442181,-330.0,0.0002944,7]
[391845338,1760909442190,-330.0,0.0002944,7]
[391845339,1760909442199,-330.0,0.0002944,7]
[391845340,1760909442208,-330.0,0.0002944,7]
[391845341,1760909442218,-330.0,0.0002944,7]
[391845342,1760909442227,-330.0,0.0002944,7]
[391845343,1760909442236,-330.0,0.0002944,7]
[391845344,1760909442245,-330.0,0.0002944,7]
[391845345,1760909442254,-337.18682453,0.0002944,7]
[391845346,1760909442264,-249.0,0.0002944,30]
[391845347,1760909442274,-352.5,0.00029563,2]
[391845348,1760909442284,-1796.17,0.00029645,2]
[391845349,1760909442293,-319.18314129,0.00029755,5]
[391845350,1760909442302,-297.39768052,0.00029798,2]
[391845351,1760909442312,-663.93287602,0.00029798,2]
[391845352,1760909442321,-168.0,0.00029909,2]
[391845353,1760909442331,-178.00081545,0.0002996,2]
[391845354,1760909442340,-1455.0,0.00029983,2]
[391845355,1760909442349,-1455.0,0.00030031,2]
[391845356,1760909442358,-168.0,0.0003006,2]
[391845357,1760909442368,-5883.99,0.000301,2]
[391845358,1760909442377,-500.0,0.00030136,120]
[391845359,1760909442386,-151.0,0.00030137,30]
[391845360,1760909442396,-518.183096,0.00030137,30]
[391845361,1760909442405,-518.183096,0.00030137,30]
[391845362,1760909442415,-518.183096,0.00030137,30]
[391845363,1760909442424,-518.183096,0.00030137,30]
[391845364,1760909442433,-286.856025,0.00030137,30]
[391845365,1760909442442,-798.902424,0.00030137,30]
[391845366,1760909442451,-207.834812,0.00030137,30]
[391845367,1760909442461,-798.902424,0.00030137,30]
[391845368,1760909442470,-207.834812,0.00030137,30]
[391845369,1760909442480,-798.902424,0.00030137,30]
[391845370,1760909442489,-207.834812,0.00030137,30]
[391845371,1760909442498,-151.0,0.00030137,30]
[391845372,1760909442508,-798.902424,0.00030137,30]
[391845373,1760909442517,-207.834812,0.00030137,30]
[391845374,1760909442527,-151.0,0.00030137,30]
[391845375,1760909442540,-151.0,0.00030137,30]
[391845376,1760909442549,-151.0,0.00030137,30]
[391845377,1760909442558,-151.0,0.00030137,30]
[391845378,1760909442568,-151.0,0.00030137,30]
[391845379,1760909442578,-151.0,0.00030137,30]
[391845380,1760909442588,-500.0,0.00030137,2]
[391845381,1760909442598,-500.0,0.00030137,2]
[391845382,1760909442608,-500.0,0.00030137,2]
[391845383,1760909442617,-500.0,0.00030137,2]
[391845384,1760909442628,-500.0,0.00030137,2]
[391845385,1760909442637,-500.0,0.00030137,2]
[391845386,1760909442646,-484.7329289,0.00030137,2]
[391845387,1760909442655,-500.0,0.00030137,2]
[391845388,1760909442665,-500.0,0.00030137,2]
[391845389,1760909442675,-500.0,0.00030137,2]
[391845390,1760909442685,-500.0,0.00030137,2]
[391845391,1760909442694,-500.0,0.00030137,2]
[391845392,1760909442704,-500.0,0.00030137,2]
[391845393,1760909442713,-500.0,0.00030137,2]
[391845394,1760909442722,-500.0,0.00030137,2]
[391845395,1760909442731,-500.0,0.00030137,2]
[391845396,1760909442740,-500.0,0.00030137,2]
[391845397,1760909442749,-500.0,0.00030137,2]
[391845398,1760909442759,-500.0,0.00030137,2]
[391845399,1760909442768,-500.0,0.00030137,2]
[391845400,1760909442777,-500.0,0.00030137,2]
[391845401,1760909442787,-500.0,0.00030137,2]
[391845402,1760909442796,-500.0,0.00030137,2]
[391845403,1760909442805,-500.0,0.00030137,2]
[391845404,1760909442814,-500.0,0.00030137,2]
[391845405,1760909442823,-500.0,0.00030137,2]
[391845406,1760909442832,-500.0,0.00030137,2]
[391845407,1760909442841,-500.0,0.00030137,2]
[391845408,1760909442850,-500.0,0.00030137,2]
[391845409,1760909442859,-500.0,0.00030137,2]
[391845410,1760909442868,-500.0,0.00030137,2]
[391845411,1760909442877,-500.0,0.00030137,2]
[391845412,1760909442886,-500.0,0.00030137,2]
[391845413,1760909442895,-500.0,0.00030137,2]
[391845414,1760909442904,-500.0,0.00030137,2]
[391845415,1760909442913,-500.0,0.00030137,2]
[391845416,1760909442923,-500.0,0.00030137,2]
[391845417,1760909442932,-500.0,0.00030137,2]
[391845418,1760909442941,-500.0,0.00030137,2]
[391845419,1760909442950,-273.98541682,0.0003015,120]
[391845420,1760909442960,-375.0,0.00030163,2]
[391845421,1760909442968,-2246.98,0.000302,2]
[391845422,1760909442978,-670.52037633,0.0003022,2]
[391845423,1760909442987,-154.222616,0.0003027,2]
[391845424,1760909442996,-156.506309,0.0003027,2]
[391845425,1760909443005,-500.0,0.00030273,120]
[391845426,1760909443014,-159.52815416,0.00030295,7]
[391845427,1760909443024,-688.49839244,0.00030346,2]
[391845428,1760909443033,-500.0,0.0003041,120]
[391845429,1760909443042,-168.0,0.00030431,2]
[391845430,1760909443051,-500.0,0.00030547,120]
[391845431,1760909443061,-151.0,0.00030595,30]
[391845432,1760909443070,-151.0,0.00030595,30]
[391845433,1760909443079,-151.0,0.00030595,30]
[391845434,1760909443088,-151.0,0.00030595,30]
[391845435,1760909443097,-500.0,0.00030684,120]
[391845438,1760909443169,-1455.0,0.00030718,2]
[391845439,1760909443178,-397.5,0.00030763,2]
[391845440,1760909443187,-1455.0,0.00030807,2]
[391845441,1760909443196,-1983.0,0.00030816,2]
[391845442,1760909443205,-500.0,0.00030821,120]
[391845443,1760909443215,-823.0,0.00030843,2]
[391845444,1760909443225,-2245.21,0.00030881,2]
[391845446,1760909443234,-1455.0,0.00030893,2]
[391845448,1760909443243,-713.97283296,0.00030894,2]
[391845450,1760909443253,-168.0,0.00030897,2]
[391845452,1760909443261,-51737.75,0.000309,7]
[391845453,1760909443270,-1842.94903,0.000309,30]
[391845455,1760909443280,-1842.94903,0.000309,30]
[391845457,1760909443289,-1842.94903,0.000309,30]
[391845459,1760909443297,-1842.94903,0.000309,30]
[391845461,1760909443306,-402.86590842,0.000309,30]
[391845463,1760909443316,-1455.0,0.0003091,7]
[391845464,1760909443325,-500.0,0.00030958,120]
[391845465,1760909443335,-303.52553925,0.0003099,2]
[391845466,1760909443344,-279.12538978,0.00031,120]
[391845467,1760909443353,-280.59493609,0.00031,120]
[391845468,1760909443362,-174.47334731,0.00031,120]
[391845469,1760909443371,-324.7217085,0.00031,120]
[391845470,1760909443380,-1484.77070193,0.00031,120]
[391845471,1760909443389,-2446.98188917,0.00031,120]
[391845473,1760909443398,-171.72962964,0.00031,120]
[391845474,1760909443407,-161.17462155,0.00031,120]
[391845475,1760909443416,-171.65406042,0.00031,120]
[391845476,1760909443425,-168.30486896,0.00031,120]
[391845477,1760909443434,-205.88724234,0.00031,120]
[391845478,1760909443443,-160.13210646,0.00031,120]
[391845479,1760909443452,-402.86590842,0.00031,120]
[391845480,1760909443461,-569.45826478,0.00031095,120]
[391845481,1760909443470,-151.0,0.00031095,30]
[391845482,1760909443480,-195.155576,0.00031095,30]
[391845483,1760909443489,-160.0,0.000311,120]
[391845484,1760909443498,-332.83372795,0.00031106,6]
[391845485,1760909443507,-13473.1305692,0.0003112,2]
[391845486,1760909443516,-1000.0,0.00031124,2]
[391845487,1760909443525,-1000.0,0.00031124,2]
[391845488,1760909443538,-1000.0,0.00031124,2]
[391845489,1760909443547,-1000.0,0.00031124,2]
[391845490,1760909443556,-1000.0,0.00031124,2]
[391845491,1760909443565,-1000.0,0.00031124,2]
[391845492,1760909443574,-1000.0,0.00031124,2]
[391845493,1760909443583,-1000.0,0.00031124,2]
[391845494,1760909443592,-1000.0,0.00031124,2]
[391845495,1760909443601,-692.119553,0.00031124,2]
[391845496,1760909443611,-168.0,0.00031124,2]
[391845497,1760909443620,-168.0,0.00031129,2]
[391845498,1760909443629,-1983.0,0.00031292,2]
[391845499,1760909443639,-168.0,0.00031328,2]
[391845500,1760909443647,-420.0,0.00031363,2]
[391845501,1760909443656,-1983.0,0.00031392,7]
[391845502,1760909443666,-154.222616,0.00031405,2]
[391845503,1760909443675,-156.506309,0.00031405,2]
[391845504,1760909443685,-168.0,0.0003143,2]
[391845505,1760909443694,-740.38982778,0.00031442,2]
[391845506,1760909443703,-695.6,0.00031444,15]
[391845507,1760909443712,-695.6,0.00031544,15]
[391845508,1760909443721,-168.0,0.00031576,2]
[391845509,1760909443730,-695.6,0.00031644,15]
[391845510,1760909443739,-261.625736,0.000317,30]
[391845511,1760909443748,-518.183096,0.000317,30]
[391845512,1760909443757,-518.183096,0.000317,30]
[391845513,1760909443766,-518.183096,0.000317,30]
[391845514,1760909443775,-518.183096,0.000317,30]
[391845515,1760909443784,-798.902424,0.000317,30]
[391845516,1760909443793,-207.834812,0.000317,30]
[391845517,1760909443802,-798.902424,0.000317,30]
[391845518,1760909443812,-207.834812,0.000317,30]
[391845519,1760909443821,-798.902424,0.000317,30]
[391845520,1760909443831,-207.834812,0.000317,30]
[391845521,1760909443840,-151.0,0.000317,30]
[391845522,1760909443850,-798.902424,0.000317,30]
[391845523,1760909443859,-207.834812,0.000317,30]
[391845524,1760909443868,-74019.17994501,0.000317,2]
[391845525,1760909443878,-151.0,0.000317,30]
[391845526,1760909443889,-198.53588,0.000317,30]
[391845527,1760909443900,-151.0,0.000317,30]
[391845528,1760909443909,-695.6,0.00031744,15]
[391845529,1760909443919,-1455.0,0.00031762,2]
[391845530,1760909443929,-5883.99,0.000318,2]
[391845531,1760909443939,-695.6,0.00031844,15]
[391845532,1760909443948,-168.0,0.00031873,2]
[391845533,1760909443958,-174.47334731,0.000319,120]
[391845534,1760909443968,-324.7217085,0.000319,120]
[391845535,1760909443978,-1484.77070193,0.000319,120]
[391845536,1760909443988,-2446.98188917,0.000319,120]
[391845537,1760909443997,-151.0,0.000319,30]
[391845538,1760909444007,-151.0,0.000319,30]